[Event "Chinese Team-ch Men 2025"]
[Site "Zhang Jiakou Hebei"]
[Date "2025.05.01"]
[Round "7.23"]
[White "Chen, Zhi"]
[Black "Xia, Jinnan"]
[Result "1/2-1/2"]
[Annotator "NA"]
[ECO "E07"]
[WhiteElo "2094"]
[BlackElo "1959"]
[PlyCount "122"]
[EventDate "2025.04.26"]
[EventType "team-tourn"]
[EventCountry "CHN"]
[SourceTitle "playchess.com"]
[Source "ChessBase"]
[SourceQuality "1"]
[TimeControl "5400+30"]

1. Nf3 {[%emt 0:00:03]} Nf6 {[%emt 0:00:25]} 2. g3 {[%emt 0:00:46]} d5 {[%emt 0:02:27]} 3. Bg2 {[%emt 0:00:07]} c6 {[%emt 0:02:07]} 4. c4 {[%emt 0:00:44]} e6 {[%emt 0:00:29]} 5. b3 {[%emt 0:01:13]} Be7 {[%emt 0:00:26]} 6. Bb2 {[%emt 0:00:33]} O-O {[%emt 0:00:14]} 7. O-O {[%emt 0:00:09]} b6 {[%emt 0:00:35]} 8. d4 {[%emt 0:00:39]} Bb7 {[%emt 0:02:10]} 9. Nbd2 {[%emt 0:00:27]} Nbd7 {[%emt 0:00:06]} 10. Ne5 {[%emt 0:01:16]} Rc8 {[%emt 0:00:54]} 11. Rc1 {[%emt 0:00:32]} c5 {[%emt 0:08:25]} 12. e3 {[%emt 0:05:07]} cxd4 {[%emt 0:04:55]} 13. exd4 {[%emt 0:00:29]} Rc7 {[%emt 0:06:13]} 14. Qe2 {[%emt 0:04:30]} Qb8 {[%emt 0:11:31]} 15. cxd5 {[%emt 0:04:37]} Bxd5 {[%emt 0:00:37]} 16. Nc6 {[%emt 0:18:10]} Rxc6 {[%emt 0:03:17]} 17. Rxc6 {[%emt 0:00:05]} Bxc6 {[%emt 0:00:12]} 18. Bxc6 {[%emt 0:00:04]} Rc8 {[%emt 0:00:48]} 19. Bxd7 {[%emt 0:00:39]} Nxd7 {[%emt 0:00:06]} 20. d5 {[%emt 0:00:03]} Qd6 {[%emt 0:17:45]} 21. Ne4 {[%emt 0:20:34]} Qxd5 {[%emt 0:01:09]} 22. Rd1 {[%emt 0:00:04]} Qc6 {[%emt 0:05:23]} 23. Qg4 {[%emt 0:00:14]} g6 {[%emt 0:01:04]} 24. Qf4 {[%emt 0:00:23]} f6 {[%emt 0:06:18]} 25. Rc1 {[%emt 0:23:55]} Qb7 {[%emt 0:00:08]} 26. Rxc8+ {[%emt 0:07:46]} Qxc8 {[%emt 0:00:06]} 27. Bxf6 {[%emt 0:00:13]} Nxf6 {[%emt 0:02:35]} 28. Nxf6+ {[%emt 0:00:05]} Bxf6 {[%emt 0:00:21]} 29. Qxf6 {[%emt 0:00:04]} Qc1+ {[%emt 0:00:28]} 30. Kg2 {[%emt 0:00:03]} Qc6+ {[%emt 0:00:03]} 31. Qf3 {[%emt 0:01:24]} Qd7 {[%emt 0:00:09]} 32. g4 {[%emt 0:00:37]} Kg7 {[%emt 0:01:09]} 33. Qc3+ {[%emt 0:00:49]} Kg8 {[%emt 0:00:21]} 34. Qf6 {[%emt 0:00:29]} Qf7 {[%emt 0:02:31]} 35. Qe5 {[%emt 0:04:11]} Qd7 {[%emt 0:00:38]} 36. Kg3 {[%emt 0:00:17]} Kf7 {[%emt 0:02:40]} 37. Qh8 {[%emt 0:01:15]} Qd3+ {[%emt 0:03:29]} 38. Kh4 {[%emt 0:00:36]} h5 {[%emt 0:07:41]} 39. Kg5 {[%emt 0:00:34]} Qd5+ {[%emt 0:06:46]} 40. Kh6 {[%emt 0:00:06]} hxg4 {[%emt 0:00:05]} 41. Qg7+ {[%emt 0:00:04]} Ke8 {[%emt 0:00:03]} 42. Qxg6+ {[%emt 0:00:59]} Kd7 {[%emt 0:00:03]} 43. Qxg4 {[%emt 0:01:23]} Qd2+ {[%emt 0:00:13]} 44. Kg7 {[%emt 0:00:06]} Qxf2 {[%emt 0:01:54]} 45. h4 {[%emt 0:00:03]} Qf5 {[%emt 0:00:52]} 46. Qa4+ {[%emt 0:00:50]} Kd6 {[%emt 0:00:22]} 47. Qa3+ {[%emt 0:03:08]} Kc6 {[%emt 0:00:59]} 48. Qxa7 {[%emt 0:02:10]} Qg4+ {[%emt 0:00:11]} 49. Kf7 {[%emt 0:00:24]} Qf5+ {[%emt 0:00:19]} 50. Ke8 {[%emt 0:00:33]} Qh5+ {[%emt 0:01:16]} 51. Qf7 {[%emt 0:00:03]} Qh8+ {[%emt 0:00:08]} 52. Ke7 {[%emt 0:01:30]} Qxh4+ {[%emt 0:00:06]} 53. Kxe6 {[%emt 0:00:21]} Qe4+ {[%emt 0:01:39]} 54. Kf6 {[%emt 0:00:04]} Qd4+ {[%emt 0:01:06]} 55. Kg6 {[%emt 0:00:41]} Qg1+ {[%emt 0:00:16]} 56. Kf5 {[%emt 0:00:33]} Qf2+ {[%emt 0:00:09]} 57. Ke6 {[%emt 0:00:10]} Qe2+ {[%emt 0:00:08]} 58. Kf6 {[%emt 0:00:12]} Qxa2 {[%emt 0:00:23]} 59. Qc4+ {[%emt 0:00:19]} Kb7 {[%emt 0:00:10]} 60. Ke6 {[%emt 0:00:05]} Qd2 {[%emt 0:01:22]} 61. b4 {[%emt 0:01:15]} Qe3+ {[%emt 0:00:40]} 1/2-1/2

[Event "Chinese Team-ch Men 2025"]
[Site "Zhang Jiakou Hebei"]
[Date "2025.05.01"]
[Round "7.24"]
[White "Pan, Xizhi"]
[Black "Gao, Kai"]
[Result "1/2-1/2"]
[Annotator "NA"]
[ECO "D02"]
[WhiteElo "1821"]
[BlackElo "1894"]
[PlyCount "47"]
[EventDate "2025.04.26"]
[EventType "team-tourn"]
[EventCountry "CHN"]
[SourceTitle "playchess.com"]
[Source "ChessBase"]
[SourceQuality "1"]
[TimeControl "5400+30"]

1. d4 {[%emt 0:00:03]} d5 {[%emt 0:00:05]} 2. Nf3 {[%emt 0:00:06]} Nf6 {[%emt 0:00:07]} 3. Bf4 {[%emt 0:00:06]} e6 {[%emt 0:00:09]} 4. e3 {[%emt 0:00:09]} c5 {[%emt 0:00:10]} 5. c3 {[%emt 0:00:14]} Bd6 {[%emt 0:00:21]} 6. Bg3 {[%emt 0:00:56]} Nc6 {[%emt 0:02:30]} 7. Nbd2 {[%emt 0:00:19]} O-O {[%emt 0:03:29]} 8. Bd3 {[%emt 0:00:11]} h6 {[%emt 0:08:21]} 9. Qe2 {[%emt 0:04:46]} Bxg3 {[%emt 0:13:20]} 10. hxg3 {[%emt 0:07:14]} Qd6 {[%emt 0:07:11]} 11. Rh4 {[%emt 0:00:00]} e5 {[%emt 0:01:21]} 12. dxe5 {[%emt 0:00:00]} Nxe5 {[%emt 0:00:03]} 13. Nxe5 {[%emt 0:00:00]} Qxe5 {[%emt 0:00:01]} 14. O-O-O {[%emt 0:01:32]} Re8 {[%emt 0:07:42]} 15. g4 {[%emt 0:01:39]} Qg5 {[%emt 0:01:16]} 16. Nf3 {[%emt 0:03:12]} Bxg4 {[%emt 0:00:05]} 17. Rdh1 {[%emt 0:00:03]} Bxf3 {[%emt 0:01:13]} 18. gxf3 {[%emt 0:00:05]} d4 {[%emt 0:19:16]} 19. f4 {[%emt 0:02:12]} Qd5 {[%emt 0:04:44]} 20. Bc4 {[%emt 0:00:17]} Qe4 {[%emt 0:10:26]} 21. Bd3 {[%emt 0:01:56]} Qd5 {[%emt 0:00:27]} 22. Bc4 {[%emt 0:00:06]} Qe4 {[%emt 0:01:02]} 23. Bd3 {[%emt 0:00:07]} Qd5 {[%emt 0:01:38]} 24. Bc4 {[%emt 0:00:40]} 1/2-1/2

[Event "Chinese Team-ch Men 2025"]
[Site "Zhang Jiakou Hebei"]
[Date "2025.05.01"]
[Round "7.25"]
[White "Yu, Shi"]
[Black "Gong, Changda"]
[Result "1/2-1/2"]
[Annotator "ChessBase"]
[ECO "B36"]
[WhiteElo "1973"]
[BlackElo "2131"]
[PlyCount "82"]
[EventDate "2025.04.26"]
[EventType "team-tourn"]
[EventCountry "CHN"]
[SourceTitle "playchess.com"]
[Source "ChessBase"]
[SourceQuality "1"]
[TimeControl "5400+30"]

1. e4 {[%emt 0:00:05]} c5 {[%emt 0:00:13]} 2. Nf3 {[%emt 0:00:06]} d6 {[%emt 0:00:03]} 3. d4 {[%emt 0:01:40]} cxd4 {[%emt 0:00:04]} 4. Nxd4 {[%emt 0:00:05]} Nf6 {[%emt 0:00:04]} 5. f3 {[%emt 0:00:23]} Nc6 {[%emt 0:03:57]} 6. c4 {[%emt 0:04:32]} Nxd4 {[%emt 0:01:56]} 7. Qxd4 {[%emt 0:00:05]} g6 {[%emt 0:00:07]} 8. Nc3 {[%emt 0:02:08]} Bg7 {[%emt 0:00:20]} 9. Be3 {[%emt 0:00:33]} O-O {[%emt 0:00:29]} 10. Qd2 {[%emt 0:00:47]} Be6 {[%emt 0:02:01]} 11. Rc1 {[%emt 0:02:44]} Qa5 {[%emt 0:02:45]} 12. Be2 {[%emt 0:02:08]} Rfc8 {[%emt 0:03:00]} 13. b3 {[%emt 0:03:20]} a6 {[%emt 0:01:26]} 14. O-O {[%emt 0:13:49]} b5 {[%emt 0:14:11]} 15. Nb1 {[%emt 0:04:14]} b4 {[%emt 0:06:10]} 16. a3 {[%emt 0:05:59]} Rab8 {[%emt 0:00:19]} 17. Bd1 {[%emt 0:12:20]} Nd7 {[%emt 0:01:00]} 18. Bc2 {[%emt 0:01:36]} Nc5 {[%emt 0:05:15]} 19. a4 {[%emt 0:00:07]} Qc7 {[%emt 0:04:11]} 20. Qe2 {[%emt 0:03:44]} Rf8 {[%emt 0:05:39]} 21. Nd2 {[%emt 0:00:23]} Rbe8 {[%emt 0:00:26]} 22. Kh1 {[%emt 0:05:05]} Bc8 {[%emt 0:02:15]} 23. f4 {[%emt 0:02:11]} f5 {[%emt 0:08:09]} 24. exf5 {[%emt 0:01:02]} gxf5 {[%emt 0:00:23]} 25. Qh5 {[%emt 0:01:29]} e6 {[%emt 0:01:46]} 26. Nf3 {[%emt 0:04:32]} Bb7 {[%emt 0:07:57]} 27. Rcd1 {[%emt 0:02:16]} d5 {[%emt 0:12:45]} 28. cxd5 {[%emt 0:03:21]} Bxd5 {[%emt 0:03:30]} 29. Bg1 {[%emt 0:10:43]} Nd7 {[%emt 0:06:27]} 30. Rc1 {[%emt 0:02:57]} Qxf4 {[%emt 0:01:30]} 31. Ng5 {[%emt 0:06:58]} Nf6 {[%emt 0:00:05]} 32. Rxf4 {[%emt 0:00:44]} Nxh5 {[%emt 0:00:04]} 33. Rh4 {[%emt 0:00:12]} h6 {[%emt 0:02:18]} 34. Nf3 {[%emt 0:02:13]} Nf6 {[%emt 0:02:39]} 35. Rxb4 {[%emt 0:02:02]} Rc8 {[%emt 0:00:28]} 36. Ne1 {[%emt 0:00:47]} Nd7 {[%emt 0:01:59]} 37. Bd4 {[%emt 0:00:49]} e5 {[%emt 0:02:14]} 38. Bb2 {[%emt 0:00:06]} e4 {[%emt 0:00:42]} 39. Bxg7 {[%emt 0:00:07]} Kxg7 {[%emt 0:00:03]} 40. Rd1 {[%emt 0:00:08]} Nf6 {[%emt 0:00:22]} 41. Rbd4 {[%emt 0:01:03]} Bc6 {[%emt 0:00:42]} 1/2-1/2

[Event "Chinese Team-ch Men 2025"]
[Site "Zhang Jiakou Hebei"]
[Date "2025.05.01"]
[Round "7.26"]
[White "Qu, Haoming"]
[Black "Liu, Huaqi"]
[Result "1-0"]
[Annotator "ChessBase"]
[ECO "B02"]
[WhiteElo "2066"]
[BlackElo "1816"]
[PlyCount "63"]
[EventDate "2025.04.26"]
[EventType "team-tourn"]
[EventCountry "CHN"]
[SourceTitle "playchess.com"]
[Source "ChessBase"]
[SourceQuality "1"]
[TimeControl "5400+30"]

1. e4 {[%emt 0:00:04]} Nf6 {[%emt 0:00:17]} 2. Nc3 {[%emt 0:00:14]} d5 {[%emt 0:00:58]} 3. e5 {[%emt 0:00:08]} Nfd7 {[%emt 0:00:21]} 4. d4 {[%emt 0:00:20]} c5 {[%emt 0:03:03]} 5. Nxd5 {[%emt 0:02:50]} cxd4 {[%emt 0:03:55]} 6. e6 {[%emt 0:11:05]} fxe6 {[%emt 0:04:28]} 7. Nf4 {[%emt 0:00:17]} Nf6 {[%emt 0:01:42]} 8. Bb5+ {[%emt 0:01:27]} Nc6 {[%emt 0:03:24]} 9. Qe2 {[%emt 0:00:11]} Qd6 {[%emt 0:11:34]} 10. Nf3 {[%emt 0:08:36]} g6 {[%emt 0:15:34]} 11. h4 {[%emt 0:26:53]} Bh6 {[%emt 0:04:56]} 12. g3 {[%emt 0:01:24]} a6 {[%emt 0:10:35]} 13. Bxc6+ {[%emt 0:06:15]} bxc6 {[%emt 0:00:02]} 14. h5 {[%emt 0:00:16]} Bxf4 {[%emt 0:11:21]} 15. Bxf4 {[%emt 0:00:02]} Qb4+ {[%emt 0:00:11]} 16. Kf1 {[%emt 0:00:33]} Nxh5 {[%emt 0:01:38]} 17. Be5 {[%emt 0:02:53]} O-O {[%emt 0:04:10]} 18. Rxh5 {[%emt 0:03:26]} gxh5 {[%emt 0:00:36]} 19. Nxd4 {[%emt 0:00:08]} Rf7 {[%emt 0:02:59]} 20. Qxh5 {[%emt 0:05:24]} Qc4+ {[%emt 0:10:34]} 21. Kg1 {[%emt 0:01:49]} c5 {[%emt 0:00:52]} 22. Rd1 {[%emt 0:05:06]} Bd7 {[%emt 0:01:33]} 23. b3 {[%emt 0:02:47]} Qd5 {[%emt 0:02:00]} 24. Nf5 {[%emt 0:00:52]} Rxf5 {[%emt 0:05:09]} 25. Qg4+ {[%emt 0:00:01]} Kf7 {[%emt 0:00:20]} 26. Qg7+ {[%emt 0:00:12]} Ke8 {[%emt 0:00:06]} 27. Rxd5 {[%emt 0:00:02]} exd5 {[%emt 0:00:06]} 28. Qxh7 {[%emt 0:00:28]} Be6 {[%emt 0:00:45]} 29. g4 {[%emt 0:01:06]} Rg5 {[%emt 0:00:31]} 30. f3 {[%emt 0:00:46]} Rc8 {[%emt 0:00:53]} 31. Qh6 {[%emt 0:00:06]} Rxe5 {[%emt 0:00:53]} 32. Qh8+ {[%emt 0:00:16]} 1-0

[Event "Chinese Team-ch Men 2025"]
[Site "Zhang Jiakou Hebei"]
[Date "2025.05.01"]
[Round "7.27"]
[White "Liu, Junyi"]
[Black "Yu, Zhenghuan"]
[Result "0-1"]
[Annotator "NA"]
[ECO "B13"]
[WhiteElo "1714"]
[BlackElo "1757"]
[PlyCount "84"]
[EventDate "2025.04.26"]
[EventType "team-tourn"]
[EventCountry "CHN"]
[SourceTitle "playchess.com"]
[Source "ChessBase"]
[SourceQuality "1"]
[TimeControl "5400+30"]

1. e4 {[%emt 0:00:03]} c6 {[%emt 0:00:09]} 2. d4 {[%emt 0:00:03]} d5 {[%emt 0:00:04]} 3. exd5 {[%emt 0:00:37]} cxd5 {[%emt 0:00:04]} 4. Nf3 {[%emt 0:00:03]} Nc6 {[%emt 0:00:29]} 5. c3 {[%emt 0:00:45]} Nf6 {[%emt 0:01:52]} 6. Bd3 {[%emt 0:08:35]} Qc7 {[%emt 0:00:40]} 7. O-O {[%emt 0:02:55]} Bg4 {[%emt 0:00:23]} 8. Re1 {[%emt 0:01:16]} e6 {[%emt 0:00:35]} 9. h3 {[%emt 0:00:47]} Bh5 {[%emt 0:00:25]} 10. g4 {[%emt 0:00:48]} Bg6 {[%emt 0:02:27]} 11. Ne5 {[%emt 0:00:22]} Nxe5 {[%emt 0:01:07]} 12. dxe5 {[%emt 0:00:32]} Nd7 {[%emt 0:00:14]} 13. Bb5 {[%emt 0:05:03]} a6 {[%emt 0:02:00]} 14. Qa4 {[%emt 0:00:22]} Rc8 {[%emt 0:00:37]} 15. Bf1 {[%emt 0:00:44]} Bc5 {[%emt 0:02:27]} 16. b4 {[%emt 0:05:55]} Be7 {[%emt 0:00:48]} 17. b5 {[%emt 0:09:10]} O-O {[%emt 0:03:09]} 18. Qf4 {[%emt 0:11:25]} Nc5 {[%emt 0:03:22]} 19. Be3 {[%emt 0:01:44]} axb5 {[%emt 0:01:09]} 20. Qd4 {[%emt 0:15:19]} Nd7 {[%emt 0:02:12]} 21. f4 {[%emt 0:01:55]} Bxb1 {[%emt 0:05:25]} 22. Raxb1 {[%emt 0:00:57]} Qxc3 {[%emt 0:00:06]} 23. Bxb5 {[%emt 0:01:54]} Qxd4 {[%emt 0:01:40]} 24. Bxd4 {[%emt 0:00:06]} Bc5 {[%emt 0:00:07]} 25. Bxd7 {[%emt 0:01:04]} Bxd4+ {[%emt 0:00:05]} 26. Kf1 {[%emt 0:01:16]} Rc7 {[%emt 0:00:19]} 27. Ba4 {[%emt 0:01:13]} Rfc8 {[%emt 0:01:46]} 28. Kg2 {[%emt 0:01:00]} Bc3 {[%emt 0:00:46]} 29. Rf1 {[%emt 0:02:33]} g5 {[%emt 0:02:43]} 30. f5 {[%emt 0:01:42]} Re7 {[%emt 0:06:51]} 31. fxe6 {[%emt 0:00:43]} fxe6 {[%emt 0:00:10]} 32. Rb6 {[%emt 0:03:03]} Bd4 {[%emt 0:01:17]} 33. Rd6 {[%emt 0:02:03]} Rf8 {[%emt 0:08:06]} 34. Re1 {[%emt 0:04:17]} Rf2+ {[%emt 0:00:33]} 35. Kh1 {[%emt 0:00:05]} Rxa2 {[%emt 0:01:17]} 36. Bd7 {[%emt 0:02:11]} Ra6 {[%emt 0:01:52]} 37. Bc8 {[%emt 0:00:05]} Rc6 {[%emt 0:01:31]} 38. Rd8+ {[%emt 0:01:07]} Kg7 {[%emt 0:00:01]} 39. Rb1 {[%emt 0:02:16]} Bxe5 {[%emt 0:01:18]} 40. Bxb7 {[%emt 0:01:32]} Rc2 {[%emt 0:00:20]} 41. Rb3 {[%emt 0:06:09]} Rf7 {[%emt 0:01:34]} 42. Ba6 {[%emt 0:00:13]} Rff2 {[%emt 0:00:28]} 0-1

[Event "Chinese Team-ch Men 2025"]
[Site "Zhang Jiakou Hebei"]
[Date "2025.05.01"]
[Round "7.28"]
[White "Wu, Kaige"]
[Black "Fang, Zelong"]
[Result "1/2-1/2"]
[Annotator "NA"]
[ECO "B20"]
[WhiteElo "1753"]
[BlackElo "1633"]
[PlyCount "107"]
[EventDate "2025.04.26"]
[EventType "team-tourn"]
[EventCountry "CHN"]
[SourceTitle "playchess.com"]
[Source "ChessBase"]
[SourceQuality "1"]
[TimeControl "5400+30"]

1. e4 {[%emt 0:00:14]} c5 {[%emt 0:00:02]} 2. g3 {[%emt 0:00:18]} Nc6 {[%emt 0:00:05]} 3. Bg2 {[%emt 0:00:15]} g6 {[%emt 0:00:04]} 4. Ne2 {[%emt 0:00:14]} Bg7 {[%emt 0:00:05]} 5. O-O {[%emt 0:00:17]} d6 {[%emt 0:00:02]} 6. c3 {[%emt 0:01:47]} e5 {[%emt 0:00:04]} 7. Na3 {[%emt 0:01:21]} Nge7 {[%emt 0:00:26]} 8. Nc2 {[%emt 0:00:36]} O-O {[%emt 0:00:05]} 9. d4 {[%emt 0:05:31]} cxd4 {[%emt 0:00:07]} 10. cxd4 {[%emt 0:00:06]} exd4 {[%emt 0:00:12]} 11. Nexd4 {[%emt 0:00:58]} d5 {[%emt 0:01:40]} 12. Nxc6 {[%emt 0:07:28]} bxc6 {[%emt 0:00:06]} 13. Bg5 {[%emt 0:11:38]} h6 {[%emt 0:05:37]} 14. Bxe7 {[%emt 0:10:10]} Qxe7 {[%emt 0:00:04]} 15. exd5 {[%emt 0:01:24]} cxd5 {[%emt 0:00:27]} 16. Bxd5 {[%emt 0:24:35]} Rb8 {[%emt 0:00:06]} 17. Re1 {[%emt 0:02:14]} Qc5 {[%emt 0:03:07]} 18. Ne3 {[%emt 0:03:13]} Rxb2 {[%emt 0:00:36]} 19. Rc1 {[%emt 0:00:47]} Qd4 {[%emt 0:01:34]} 20. Qf3 {[%emt 0:04:43]} Be6 {[%emt 0:02:53]} 21. a3 {[%emt 0:02:37]} Rd2 {[%emt 0:08:53]} 22. Rcd1 {[%emt 0:04:37]} Rxd1 {[%emt 0:06:26]} 23. Rxd1 {[%emt 0:00:34]} Qa4 {[%emt 0:00:42]} 24. Bxe6 {[%emt 0:03:59]} fxe6 {[%emt 0:00:06]} 25. Qg4 {[%emt 0:02:03]} Qxg4 {[%emt 0:00:55]} 26. Nxg4 {[%emt 0:00:05]} Rb8 {[%emt 0:02:11]} 27. Rd7 {[%emt 0:01:03]} a5 {[%emt 0:00:04]} 28. Ra7 {[%emt 0:02:20]} Rb5 {[%emt 0:01:18]} 29. Kg2 {[%emt 0:01:27]} h5 {[%emt 0:00:23]} 30. Ne3 {[%emt 0:00:07]} Rc5 {[%emt 0:00:09]} 31. Kf3 {[%emt 0:01:30]} Kh7 {[%emt 0:01:22]} 32. Ra6 {[%emt 0:01:39]} Bb2 {[%emt 0:10:56]} 33. a4 {[%emt 0:00:37]} e5 {[%emt 0:00:09]} 34. Ke4 {[%emt 0:01:39]} Bd4 {[%emt 0:00:19]} 35. h4 {[%emt 0:00:59]} Bxe3 {[%emt 0:00:57]} 36. fxe3 {[%emt 0:01:00]} Rc4+ {[%emt 0:01:10]} 37. Kxe5 {[%emt 0:00:09]} Rxa4 {[%emt 0:00:04]} 38. Ra7+ {[%emt 0:00:40]} Kh6 {[%emt 0:00:39]} 39. e4 {[%emt 0:00:53]} Ra3 {[%emt 0:00:52]} 40. Kf4 {[%emt 0:00:41]} Ra4 {[%emt 0:00:16]} 41. Ra6 {[%emt 0:00:40]} Kh7 {[%emt 0:00:31]} 42. Re6 {[%emt 0:00:44]} Kh6 {[%emt 0:00:52]} 43. Re7 {[%emt 0:00:44]} Rb4 {[%emt 0:00:28]} 44. Ra7 {[%emt 0:01:03]} a4 {[%emt 0:00:12]} 45. Ke5 {[%emt 0:00:49]} Rb3 {[%emt 0:00:06]} 46. Kf4 {[%emt 0:00:56]} Rb4 {[%emt 0:00:07]} 47. Ra6 {[%emt 0:00:27]} Kh7 {[%emt 0:00:07]} 48. Ke5 {[%emt 0:00:23]} Rb3 {[%emt 0:00:04]} 49. Kf4 {[%emt 0:00:46]} Rb4 {[%emt 0:00:04]} 50. Re6 {[%emt 0:00:46]} Kh6 {[%emt 0:00:28]} 51. Re7 {[%emt 0:00:32]} Rc4 {[%emt 0:00:11]} 52. Ra7 {[%emt 0:00:24]} Rb4 {[%emt 0:00:05]} 53. Ke5 {[%emt 0:00:04]} Rb3 {[%emt 0:00:03]} 54. Kf4 {[%emt 0:01:26]} 1/2-1/2

[Event "Chinese Team-ch Men 2025"]
[Site "Zhang Jiakou Hebei"]
[Date "2025.05.01"]
[Round "7.29"]
[White "Ma, Lin"]
[Black "Wan, Yunguo"]
[Result "0-1"]
[Annotator "ChessBase"]
[ECO "E52"]
[WhiteElo "2221"]
[BlackElo "2500"]
[PlyCount "166"]
[EventDate "2025.04.26"]
[EventType "team-tourn"]
[EventCountry "CHN"]
[SourceTitle "playchess.com"]
[Source "ChessBase"]
[SourceQuality "1"]
[TimeControl "5400+30"]

1. d4 {[%emt 0:00:03]} Nf6 {[%emt 0:00:14]} 2. c4 {[%emt 0:00:06]} e6 {[%emt 0:00:41]} 3. Nc3 {[%emt 0:00:14]} Bb4 {[%emt 0:00:08]} 4. Bd2 {[%emt 0:00:41]} O-O {[%emt 0:00:55]} 5. e3 {[%emt 0:00:13]} d5 {[%emt 0:00:32]} 6. Nf3 {[%emt 0:00:14]} b6 {[%emt 0:00:06]} 7. cxd5 {[%emt 0:00:27]} exd5 {[%emt 0:00:05]} 8. Bd3 {[%emt 0:00:05]} Bd6 {[%emt 0:00:54]} 9. O-O {[%emt 0:12:51]} Bb7 {[%emt 0:00:35]} 10. Rc1 {[%emt 0:02:39]} c5 {[%emt 0:00:07]} 11. Ne5 {[%emt 0:01:29]} Nc6 {[%emt 0:00:56]} 12. Ng4 {[%emt 0:01:54]} Ne4 {[%emt 0:21:12]} 13. Nxe4 {[%emt 0:22:40]} dxe4 {[%emt 0:00:12]} 14. Bxe4 {[%emt 0:00:02]} f5 {[%emt 0:02:26]} 15. dxc5 {[%emt 0:00:40]} fxe4 {[%emt 0:07:42]} 16. cxd6 {[%emt 0:06:15]} h5 {[%emt 0:00:15]} 17. Qb3+ {[%emt 0:04:27]} Kh8 {[%emt 0:03:01]} 18. Qb5 {[%emt 0:10:03]} hxg4 {[%emt 0:03:20]} 19. Rxc6 {[%emt 0:00:04]} Bxc6 {[%emt 0:03:02]} 20. Qxc6 {[%emt 0:00:02]} Qe8 {[%emt 0:05:23]} 21. d7 {[%emt 0:00:08]} Qe7 {[%emt 0:00:21]} 22. a3 {[%emt 0:00:20]} Rfd8 {[%emt 0:02:53]} 23. Bc3 {[%emt 0:00:07]} Qxd7 {[%emt 0:00:39]} 24. Qxe4 {[%emt 0:00:08]} Rf8 {[%emt 0:05:13]} 25. Qg6 {[%emt 0:03:17]} Kg8 {[%emt 0:00:58]} 26. f4 {[%emt 0:18:02]} gxf3 {[%emt 0:00:34]} 27. gxf3 {[%emt 0:00:02]} Rae8 {[%emt 0:03:11]} 28. Bd4 {[%emt 0:02:52]} Re6 {[%emt 0:00:15]} 29. Qg4 {[%emt 0:07:43]} Qf7 {[%emt 0:01:25]} 30. Kh1 {[%emt 0:01:09]} Rg6 {[%emt 0:00:11]} 31. Qe4 {[%emt 0:00:10]} Re8 {[%emt 0:00:20]} 32. Qc2 {[%emt 0:00:38]} Rg5 {[%emt 0:01:05]} 33. Qf2 {[%emt 0:00:59]} Rc8 {[%emt 0:01:20]} 34. Bc3 {[%emt 0:01:18]} Qd5 {[%emt 0:06:10]} 35. Rg1 {[%emt 0:02:17]} Rxg1+ {[%emt 0:05:14]} 36. Kxg1 {[%emt 0:00:02]} Rc6 {[%emt 0:00:57]} 37. Qg3 {[%emt 0:03:55]} Qd1+ {[%emt 0:00:16]} 38. Kf2 {[%emt 0:00:18]} Qc2+ {[%emt 0:00:06]} 39. Kf1 {[%emt 0:00:11]} Rg6 {[%emt 0:00:06]} 40. Qh3 {[%emt 0:00:34]} Qd1+ {[%emt 0:01:45]} 41. Kf2 {[%emt 0:00:01]} Qg1+ {[%emt 0:00:17]} 42. Ke2 {[%emt 0:00:01]} Rg2+ {[%emt 0:02:40]} 43. Kd3 {[%emt 0:00:02]} Qf1+ {[%emt 0:00:11]} 44. Ke4 {[%emt 0:00:22]} Qc4+ {[%emt 0:01:20]} 45. Bd4 {[%emt 0:00:05]} Qc2+ {[%emt 0:08:20]} 46. Kf4 {[%emt 0:00:40]} Qc7+ {[%emt 0:03:56]} 47. Ke4 {[%emt 0:00:44]} Rxh2 {[%emt 0:01:29]} 48. Qe6+ {[%emt 0:00:13]} Qf7 {[%emt 0:00:21]} 49. Qxf7+ {[%emt 0:02:50]} Kxf7 {[%emt 0:00:04]} 50. f4 {[%emt 0:00:02]} Rh5 {[%emt 0:02:18]} 51. Be5 {[%emt 0:00:06]} g5 {[%emt 0:00:58]} 52. fxg5 {[%emt 0:01:32]} Rxg5 {[%emt 0:00:07]} 53. Bb8 {[%emt 0:00:22]} a6 {[%emt 0:00:23]} 54. Bc7 {[%emt 0:00:38]} Rb5 {[%emt 0:00:32]} 55. Be5 {[%emt 0:00:28]} Ke6 {[%emt 0:00:48]} 56. Bd4 {[%emt 0:00:07]} Kd6 {[%emt 0:00:31]} 57. Kd3 {[%emt 0:00:35]} Kc6 {[%emt 0:01:15]} 58. Kc4 {[%emt 0:00:14]} Rh5 {[%emt 0:00:06]} 59. a4 {[%emt 0:00:34]} Rh1 {[%emt 0:00:34]} 60. Kb4 {[%emt 0:00:35]} Rc1 {[%emt 0:00:33]} 61. Ka3 {[%emt 0:00:32]} b5 {[%emt 0:02:33]} 62. axb5+ {[%emt 0:00:07]} Kxb5 {[%emt 0:00:04]} 63. Ka2 {[%emt 0:00:59]} Kc4 {[%emt 0:00:41]} 64. Bf6 {[%emt 0:00:31]} Rf1 {[%emt 0:01:47]} 65. Be5 {[%emt 0:00:22]} Rf5 {[%emt 0:00:11]} 66. Bc3 {[%emt 0:00:46]} Rd5 {[%emt 0:00:28]} 67. Ka3 {[%emt 0:00:42]} Rd3 {[%emt 0:00:29]} 68. e4 {[%emt 0:00:12]} Rd1 {[%emt 0:00:22]} 69. Ka2 {[%emt 0:00:06]} Rf1 {[%emt 0:01:40]} 70. Bg7 {[%emt 0:00:27]} Rf7 {[%emt 0:01:24]} 71. Bh8 {[%emt 0:00:19]} Rb7 {[%emt 0:04:16]} 72. e5 {[%emt 0:01:17]} Rb4 {[%emt 0:00:07]} 73. Ka3 {[%emt 0:00:29]} Rb5 {[%emt 0:00:18]} 74. Ka2 {[%emt 0:00:28]} Ra5+ {[%emt 0:00:08]} 75. Kb1 {[%emt 0:00:01]} Kb3 {[%emt 0:00:08]} 76. Bf6 {[%emt 0:01:09]} Rc5 {[%emt 0:00:08]} 77. Bg7 {[%emt 0:00:31]} Rc2 {[%emt 0:00:17]} 78. Bf6 {[%emt 0:00:27]} a5 {[%emt 0:00:12]} 79. e6 {[%emt 0:00:34]} Rf2 {[%emt 0:00:14]} 80. Bg5 {[%emt 0:00:04]} Rf1+ {[%emt 0:00:05]} 81. Bc1 {[%emt 0:00:02]} Re1 {[%emt 0:00:03]} 82. e7 {[%emt 0:00:15]} Rxe7 {[%emt 0:00:15]} 83. Bd2 {[%emt 0:00:05]} Rd7 {[%emt 0:00:05]} 0-1